Cogmind - Beta 16 @@@ ROGUE MODE // 2026.01.17 @ 22:09:05 Player: human Result: Destroyed by YH-RNT(R) with Subdweller Machine Gun Performance ------------- Evolutions (0) 0 Regions Visited (3) 600 Robots Destroyed (25) 125 Value Destroyed (696) 696 Prototype IDs (0) 0 Alien Tech Used (0) 0 Bonus (0) 0 TOTAL SCORE: 1421 Bonus ------- None Cogmind --------- Core Integrity 0/250 Matter 300/300 Energy 240/250 System Corruption 0% Temperature Cool (0) Movement Treading (160) Location -10/Subcaves Parts ------- > --- POWER (1) -------- Ion Engine > --- PROPULSION (2) --- Light Treads Light Treads > --- UTILITY (2) ------ Large Storage Unit Core Shielding > --- WEAPON (2) ------- Medium Laser > --- INVENTORY (15) --- Light Ion Engine Light Treads Hover Unit Hover Unit Hover Unit Small Storage Unit Huge Storage Unit Large Matter Pod (150) Experimental Sensor Array Hacking Suite Hacking Suite Peak State ------------ > --- POWER ------------ Ion Engine > --- PROPULSION ------- Light Treads Light Treads > --- UTILITY ---------- Large Storage Unit Core Shielding > --- WEAPON ----------- EM Pulse Gun Medium Laser > --- INVENTORY -------- Light Ion Engine Light Treads Hover Unit Hover Unit Hover Unit Small Storage Unit Large Matter Pod Experimental Sensor Array Hacking Suite Hacking Suite [Rating: 9] Favorites ----------- Power Ion Engine Engine Ion Engine Propulsion Light Treads Treads Light Treads Wheel Compact Wheel Utility Large Storage Unit Storage Large Storage Unit Protection Core Shielding Weapon Medium Laser Energy Gun Medium Laser Energy Cannon Beam Cannon Ballistic Gun Light Assault Rifle Build | -11 -10 -10 -10 ------- Run | Yrd Mat Min Sub Slots Evolved . | . . . . Power . | . . . . Propulsion . | . . . . Utility . | . . . . Weapon . | . . . . Parts Attached 17 | 6 10 1 . Power 3 | 1 2 . . Engine 3 | 1 2 . . Core . | . . . . Reactor . | . . . . Propulsion 5 | 2 3 . . Treads 3 | . 3 . . Leg . | . . . . Wheel 2 | 2 . . . Hover . | . . . . Flight . | . . . . Utility 3 | 1 2 . . Device . | . . . . Storage 2 | 1 1 . . Processor . | . . . . Hackware . | . . . . Protection 1 | . 1 . . Artifact . | . . . . Weapon 6 | 2 3 1 . Energy Gun 4 | 1 2 1 . Energy Cannon 1 | . 1 . . Ballistic Gun 1 | 1 . . . Ballistic Cannon . | . . . . Launcher . | . . . . Special Weapon . | . . . . Impact Weapon . | . . . . Slashing Weapon . | . . . . Piercing Weapon . | . . . . Special Melee Weapon . | . . . . Unidentified Prototypes . | . . . . Parts Lost 6 | . 5 . 1 Power 1 | . 1 . . Propulsion 2 | . 2 . . Utility . | . . . . Weapon 3 | . 2 . 1 Highest Loss Streak 4 | . 4 . 1 To Critical Strikes . | . . . . Average Backups 8 | 1 8 10 11 Power . | . . . 1 Propulsion 3 | . 3 4 4 Utility 3 | . 2 5 6 Weapon . | . 1 . . Tool/Special . | . . . . Unused Backups 10 | . . . 10 Power 1 | . . . 1 Propulsion 4 | . . . 4 Utility 5 | . . . 5 Weapon . | . . . . Tool/Special . | . . . . Average Slot Usage (%) 93 | . 89 100 98 Engine 11 | . 10 14 14 Treads 20 | . 15 28 28 Wheel 6 | . 11 . . Storage 19 | . 22 14 14 Protection 7 | . 2 14 14 Energy Gun 18 | . 12 28 26 Energy Cannon 6 | . 11 . . Ballistic Gun 1 | . 2 . . Peak Build Rating 9 | 6 8 9 9 Average Rating 7 | 4 7 8 8 On Entrance 5 | . 6 7 9 Avg Prop Armor Cover (%) 10 | . 10 . . Naked Turns . | . . . . Heaviest Build 35 | 13 35 30 30 Greatest Support 40 | 26 40 40 40 Greatest Overweight (x) 2 | . 2 . . Average Overweight (x) . | . . . . Largest Inventory Capacity 15 | 8 15 15 15 Average Capacity 13 | 7 13 15 15 Most Carried 11 | 4 11 11 11 Average Carried 8 | 2 8 10 11 Final Capacity 15 | 8 15 15 15 Final Carried 11 | 4 9 11 11 Class Distribution -------------------- 100% | Mutant Dominant Class ---------------- Mutant | -10/Materials Mutant | -10/Mines Mutant | -10/Subcaves Resources | -11 -10 -10 -10 ----------- Run | Yrd Mat Min Sub Matter Collected 588 | 220 358 10 . Remotely . | . . . . Salvage Created 996 | . 897 41 58 Parts 56 | . 47 6 3 Haulers Intercepted 1 | . 1 . . Recyclers Shooed . | . . . . Parts Field Recycled . | . . . . Retrieved Matter . | . . . . Parts Self-Destructed . | . . . . Prevented . | . . . . Parts Restored . | . . . . Kills | -11 -10 -10 -10 ------- Run | Yrd Mat Min Sub Combat Hostiles Destroyed 20 | . 16 3 1 Guns 13 | . 10 2 1 Cannons 5 | . 5 . . AOE 2 | . 1 1 . Classes Destroyed 7 | . 5 1 1 Hauler 1 | . 1 . . Recycler 1 | . 1 . . Operator 2 | . 2 . . Watcher 1 | . 1 . . Swarmer 3 | . . 3 . Grunt 16 | . 16 . . Subdweller 1 | . . . 1 Best Kill Streak 5 | . 5 3 1 Combat Bots Only 5 | . 5 3 1 Max Kills in Single Turn 2 | . 1 2 1 Gunslinging 1 | . . 1 . Exploded 1 | . 1 1 . Melee . | . . . . Uniques/NPCs Destroyed . | . . . . Combat | -11 -10 -10 -10 -------- Run | Yrd Mat Min Sub Hostile Shots Fired 95 | . 82 5 8 Missed 23 | . 18 3 2 Hits 72 | . 64 2 6 Projectile 72 | . 64 2 6 Damage Taken 979 | . 829 19 131 Core 252 | . 202 . 50 Absorbed by Shields . | . . . . Redirected to Shielding 19 | . 12 . 7 Core Remaining (%) 100 | 100 . . . Volleys Fired 65 | . 56 2 7 Largest 2 | . 2 2 2 Hottest 110 | . 110 90 90 Shots Fired 118 | . 106 4 8 Gun 74 | . 62 4 8 Cannon 44 | . 44 . . Launcher . | . . . . Special . | . . . . Kinetic 8 | . 8 . . Thermal 84 | . 75 2 7 Explosive . | . . . . Electromagnetic 26 | . 23 2 1 Robot Hit Streak 12 | . 9 8 12 Robot Miss Streak 3 | . 3 . 1 Penetration Max . | . . . . Secondary Targets 1 | . . 1 . Max Gunslinging Chain 1 | . . 1 . Shots Hit Robots 80 | . 69 4 7 Core Hits 35 | . 29 3 3 Critical Kills . | . . . . Critical Parts Destroyed . | . . . . Critical Strikes 2 | . 1 . 1 Burn 2 | . 1 . 1 Melee Attacks . | . . . . Impact . | . . . . Slashing . | . . . . Piercing . | . . . . Sneak Attacks . | . . . . Combat Hostiles . | . . . . Follow-up Attacks . | . . . . Damage Inflicted 1207 | . 1044 76 87 Guns 640 | . 519 34 87 Cannons 500 | . 500 . . Explosions 67 | . 25 42 . Melee . | . . . . Ramming . | . . . . Kinetic 47 | . 47 . . Thermal 894 | . 763 54 77 Explosive . | . . . . Electromagnetic 266 | . 234 22 10 Impact . | . . . . Slashing . | . . . . Piercing . | . . . . Highest Corruption . | . . . . Average Corruption . | . . . . Corruption Purged . | . . . . Corruption Blocked . | . . . . Overload Shots . | . . . . Overflow Damage 1 | . . 1 . Projectiles . | . . . . Explosions 1 | . . 1 . Melee . | . . . . Knockbacks . | . . . . Impact . | . . . . Kinetic . | . . . . Secondary . | . . . . Self-Inflicted Damage 38 | . 38 . . Shots 1 | . 1 . . Rammed . | . . . . Targets Rammed . | . . . . Kicked . | . . . . Crushed . | . . . . Highest Temperature 400 | . 400 60 . Average Temperature 145 | . 149 30 . Received Heat Transfer 447 | . 429 . 18 Effects 4 | . 4 . . Shutdowns 1 | . 1 . . Energy Bleed 1 | . 1 . . Interference 1 | . 1 . . Short Circuit 1 | . 1 . . Siege Activations . | . . . . Martial Activations . | . . . . Shielding Activations . | . . . . Robots Disrupted . | . . . . Combat Hostiles . | . . . . Robots Corrupted . | . . . . Combat Hostiles . | . . . . Parts Fried . | . . . . Impact Corruptions . | . . . . Robots Melted . | . . . . Combat Hostiles . | . . . . Parts Melted 4 | . 1 . 3 Heat Transferred 2246 | . 1863 87 296 Parts Sabotaged . | . . . . Parts Stolen . | . . . . Parts Stripped . | . . . . Power Chain Reactions 2 | . 1 1 . Alert | -11 -10 -10 -10 ------- Run | Yrd Mat Min Sub Maximum Alert Level 1 | . 1 . . Low Security (%) 93 | 100 90 100 . Level 1 6 | . 9 . . Level 2 . | . . . . Level 3 . | . . . . Level 4 . | . . . . Level 5 . | . . . . High Security . | . . . . Max Security . | . . . . Peak Influence 236 | . 236 152 . Initial 78 | . . 78 . Average 93 | . 101 93 . Influence Increases 619 | . 545 74 . Destroy 0b10 Robot/C 380 | . 320 60 . Destroy 0b10 Robot/NC 25 | . 25 . . Destroy Leader 94 | . 84 10 . Successful Hack 6 | . 6 . . Select Force Hacks 60 | . 60 . . Destroy Structure 9 | . 5 4 . Lose Combat Pursuer 45 | . 45 . . Influence Decreases 619 | . 343 244 32 Entered New Map 141 | . . 124 17 Time Decay 428 | . 293 120 15 Lost Part 50 | . 50 . . Squads Dispatched 6 | . 6 . . Investigation 4 | . 4 . . Extermination . | . . . . Reinforcement 2 | . 2 . . Assault . | . . . . Garrison . | . . . . Intercept . | . . . . Searches Triggered . | . . . . Construction Impeded . | . . . . Haulers Reinforced . | . . . . Active Scanning Responses . | . . . . Cargo Convoy Interrupts . | . . . . Stealth | -11 -10 -10 -10 --------- Run | Yrd Mat Min Sub Distress Signals 1 | . 1 . . Communications Jammed . | . . . . Distress Signals . | . . . . Times Spotted 34 | . 29 3 2 Peak Tracking Total 5 | . 5 3 2 Tactical Retreats 4 | . 3 . 1 Traps | -11 -10 -10 -10 ------- Run | Yrd Mat Min Sub Traps Triggered 6 | . 6 . . Indirectly . | . . . . Trap Hack Attempts . | . . . . Triggered . | . . . . Disarmed . | . . . . Reprogrammed . | . . . . Reused . | . . . . Traps Extracted . | . . . . Installed . | . . . . Triggered . | . . . . Machines | -11 -10 -10 -10 ---------- Run | Yrd Mat Min Sub Machines Disabled . | . . . . Max in Single Turn . | . . . . Machines Repaired . | . . . . Machines Dismantled . | . . . . Machines Sabotaged . | . . . . Overloaded Fab Kills . | . . . . Hacking | -11 -10 -10 -10 --------- Run | Yrd Mat Min Sub Machines Accessed 5 | . 5 . . Terminals 3 | . 3 . . Fabricators . | . . . . Repair Stations . | . . . . Recycling Units 2 | . 2 . . Scanalyzers . | . . . . Garrison Access . | . . . . Total Hacks 12 | . 12 . . Successful 7 | . 7 . . Failed 5 | . 5 . . Catastrophic . | . . . . Database Lockouts . | . . . . Manual 12 | . 12 . . Terminals 10 | . 10 . . Fabricators . | . . . . Repair Stations . | . . . . Recycling Units 2 | . 2 . . Scanalyzers . | . . . . Garrison Access . | . . . . Terminal Hacks 2 | . 2 . . Robot Analysis 1 | . 1 . . Terminal Index 1 | . 1 . . Fabricator Hacks . | . . . . Repair Station Hacks . | . . . . Recycling Unit Hacks . | . . . . Scanalyzer . | . . . . Garrison Access Hacks . | . . . . Unauthorized Hacks 5 | . 5 . . Terminals 3 | . 3 . . Assimilate 1 | . 1 . . Botnet 1 | . 1 . . Sabotage 1 | . 1 . . Fabricators . | . . . . Repair Stations . | . . . . Recycling Units 2 | . 2 . . Tunnel 2 | . 2 . . Scanalyzers . | . . . . Garrison Access . | . . . . Data Cores Recovered . | . . . . Used . | . . . . Hacking Detections 1 | . 1 . . Full Trace Events . | . . . . Feedback Events . | . . . . Feedback Blocked . | . . . . Robot Schematics Acquired . | . . . . Robots Built . | . . . . Authchips . | . . . . Time . | . . . . Total Robot Build Rating . | . . . . Part Schematics Acquired . | . . . . Parts Built . | . . . . Authchips . | . . . . Time . | . . . . Total Part Build Rating . | . . . . Part Studies Acquired . | . . . . Parts Repaired . | . . . . Time . | . . . . Parts Recycled . | . . . . Recycled Matter . | . . . . Retrieved Matter . | . . . . Retrieved Components . | . . . . Parts Scanalyzed . | . . . . Part Schematics Acquired . | . . . . Parts Damaged . | . . . . Bothacking | -11 -10 -10 -10 ------------ Run | Yrd Mat Min Sub Used RIF Installer . | . . . . Robots Hacked . | . . . . Non-combat . | . . . . Combat . | . . . . Robot Hacks Applied . | . . . . Relay Couplers Released . | . . . . Fabnet Peak Effective % . | . . . . Robots Rewired . | . . . . Allies Hacked . | . . . . Hacks Repelled . | . . . . Allies | -11 -10 -10 -10 -------- Run | Yrd Mat Min Sub Total Allies . | . . . . Largest Group . | . . . . Highest-Rated Group . | . . . . Highest-Rated Ally . | . . . . Total Orders . | . . . . Ally Attacks . | . . . . Total Damage . | . . . . Kills . | . . . . Allies Corrupted . | . . . . Allies Melted . | . . . . Intel | -11 -10 -10 -10 ------- Run | Yrd Mat Min Sub Active Infowar (turns) . | . . . . Robot Analysis Total 1 | . 1 . . Derelict Logs Recovered 2 | . . 2 . Drone Launches . | . . . . Drone Recoveries . | . . . . Exploration | -11 -10 -10 -10 ------------- Run | Yrd Mat Min Sub Turns Passed 1282 | 63 715 249 255 Spaces Moved 736 | 59 378 148 151 Core 5 | 5 . . . Treads 490 | . 191 148 151 Legs . | . . . . Wheels 241 | 54 187 . . Hover . | . . . . Flight . | . . . . Fastest Speed 50 | 50 90 160 160 Average Speed 140 | 85 134 160 160 Slowest Speed 240 | 90 240 160 160 Overloaded Moves . | . . . . Propulsion Burnouts . | . . . . Robots Hopped . | . . . . Potential Cave-ins . | . . . . Cave-ins Triggered . | . . . . Exploration Rate (%) 31 | 4 68 39 16 Regions Visited 3 Branch Regions 2 Pre-discovered Areas 4 | . 2 2 . Known Exits Taken . | . . . . Unknown Exits Taken 3 | 1 1 1 . Scrap Searched 1 | . . 1 . Spaces Dug . | . . . . Terrain Destroyed 6 | . 2 4 . Melee . | . . . . Projectile . | . . . . AOE 6 | . 2 4 . Terrain Rammed . | . . . . Walls Destroyed . | . . . . Machines Disabled . | . . . . Actions | -11 -10 -10 -10 --------- Run | Yrd Mat Min Sub Total 859 | 68 477 156 158 Wait 20 | . 17 3 . Move 733 | 58 377 147 151 Hop . | . . . . Pick Up 16 | 4 9 3 . Fast Attach 17 | 6 11 . . Attach 5 | . 4 1 . Detach . | . . . . Swap 1 | . 1 . . Drop 2 | . 2 . . Fire 65 | . 56 2 7 Melee . | . . . . Ram . | . . . . Kick . | . . . . Crush . | . . . . Escape Stasis . | . . . . Rewire . | . . . . Trap . | . . . . Miscellaneous . | . . . . Route ------- -11/Scrapyard -10/Materials (discovered 3 exits: [*Mat] / [*Min x2]) -10/Mines -10/Subcaves History --------- Turn | Location | Event 4 | -11/Scrapyard | Discovered new exit (range 16) 64 | -11/Scrapyard | Entered Materials 287 | -10/Materials | Discovered new exit (range 12) 303 | -10/Materials | Build established: Mutant 413 | -10/Materials | Lost 4 parts (1p2n1w) 450 | -10/Materials | Core integrity fell below 50% 511 | -10/Materials | Discovered new exit (range 9) 604 | -10/Materials | Discovered new exit (range 13) 757 | -10/Materials | Core integrity fell below 20% 779 | -10/Materials | Entered Mines 807 | -10/Mines | Found a damaged Exp. Sensor Array with a note attached 810 | -10/Mines | Found Prototype Device 822 | -10/Mines | Learned location of Zion (-6) 948 | -10/Mines | Found a hidden stash of uninstalled traps 1021 | -10/Mines | Discovered new exit (range 4) 1028 | -10/Mines | Entered Subcaves 1029 | -10/Subcaves | Approached by a straggling Scientist 1283 | -10/Subcaves | Destroyed by YH-RNT(R) with Subdweller Machine Gun Last Messages --------------- AMBIENT_HEAT=-10 GOAL=ESCAPE 01029_ KI-434(c): "Thank the algorithms! I was beginning to lose hope I'd never make it past all the Subs lurking out here." 01032_ KI-434(c): "Hey, let me tag along and I can get us both out of this nasty situation. At least I think I can... The group I got separated from was talking about a shortcut back to the UFD." KI-434(c): "I think it's somewhere south of here" KI-434(c): "I think it's somewhere southwest of here" 01257_ 28-7US(R) suffers critical hit (Burn). 01259_ EM Pulse Gun destroyed. 01260_ Sub. Optics melted. 01260_ Sub. Power Source melted. 01260_ Sub. Monowheel melted. 01260_ 28-7US(R) destroyed. Map ----- +----------------------------------------------------+ | ??????## ### #??????## ???###???????????????????? | | #?##### ##?????# #### #???????????????????? | | ### ##?##### ## #??#####????????????? | | ## ### ### #### ##??######???? | | ## ## ### #???? | | ## ## #????? | | ## ### ## #?####?? | | ### ### ### ### | | #?## #? # | | #?## ## ## #? # | | #### #?##### ## #?# # | | #??# #????# ## ### ####?# %# | | ## #??# ????# ## #?# ###?## % | | ## #? ???? ### ### | | ?# ## ####?? ### | | ? ##?##???? #### | | ? ##??????? #### ##### | | ?## ######??????? ### ##???### | | ??## #???????????? ##### ##??????# % | | ???? ????????????? ###?## ##???????#### | | ????# ##???????????????#???## ##???????????# | | ?????###???????????????????## ##???????????## | | ?????????????????????####### #?????? ?????# | | ??????????????????#### R ##????? #????# | | ??????????????????# ####???? #?????# % # | | ??????????????????# @ #?##### #?????? # | | ??????????????????######## ## #?????? # | | ????????????????????????## ###??? % # | | ???????????????????????## #?? ## | | ???????????????????????# #?### | | ???????????????????????# ## #### # # ????# | | ???????????????????????# !&##?##?????#? ?????# | | ???????????????????????# &%####???????? ??????# | | ???????????????????????# & ##??????????????### | | ???????????????????????# ##???????????????? | | ???????????????????????## #????????????????# | | ????????????????????????##### #????????????????? | | ????????????????????????????### #????????????????? | | ??????????????????????????????###????????????????? | | ?????????????????????????????????????????????????? | | ?????????????????????????????????????????????????? | | ?????????????????????????????????????????????????? | | ?????????????????????????????????????????????????? | | ?????????????????????????????????????????????????? | | ?????????????????????????????????????????????????? | | ?????????????????????????????????????????????????? | | ?????????????????????????????????????????????????? | | ?????????????????????????????????????????????????? | | ?????????????????????????????????????????????????? | | ?????????????????????????????????????????????????? | +----------------------------------------------------+ Best States ------------- Heat Dissipation 25 Energy Generation 10 Energy Capacity 250 Matter Stores 300 Matter Capacity 300 Sight Range 16 Terrain Scan Density 10 Core Shielding 20 Evasion (%) 44 Recoil Reduction 2 Item Schematics ----------------- None Robot Schematics ------------------ None Fabricated ------------ Nothing Repaired ---------- Nothing Studied --------- None Alien Tech Used ----------------- None Achievements -------------- None Challenges ------------ None Game ------ Seed WardroneHugeBlaster Manual? 0 Play Time 00:13:44 Cumulative 352.2 hours Start 2026.01.17 @ 21:56:05 End 2026.01.17 @ 22:09:05 Sessions 1 Manual Loads 0 Difficulty Rogue Special Mode None Game No. 270 Rogue 270 Adventurer 0 Explorer 0 Win Type - Total 4 Types 3/0/1/0/0/0/0/0/0/0 Lore% 81 Gallery% 69 Achievement% 46 Wizard Run 0 Options --------- Layout 1 ASCII 0 Keyboard 0 Movement Mouse Keybinds 0 Fullscreen 1 Font 24/Smallcaps Map View 50x35 Zoom Use 0% Tactical HUD 1 Map Filters NONE Filters NONE Steam 1 RUN: d3dc4ada-66d5-4f6b-8aff-62ea8aa81f6b